[Event "10th Norway Chess Blitz 2022"]
[Site "Stavanger"]
[Date "2022.05.30"]
[Round "6.5"]
[White "Wang, Hao"]
[Black "Anand, Viswanathan"]
[Result "1/2-1/2"]
[ECO "C67"]
[WhiteElo "2744"]
[BlackElo "2751"]
[Annotator "TA"]
[PlyCount "79"]
[EventDate "2022.05.30"]
[EventType "tourn"]
[EventCountry "NOR"]
[SourceTitle "playchess.com"]
[Source "ChessBase"]
[SourceQuality "1"]
[TimeControl "180+2"]

{[%evp 15,79,24,19,16,21,21,16,29,15,16,18,28,16,20,16,0,0,0,34,25,58,22,68,41,45,31,46,50,57,51,58,36,45,8,16,16,14,14,14,14,15,8,17,14,8,0,8,8,8,8,8,8,8,8,8,8,34,34,34,6,6,0,0,0,0,0]} 1. e4 {[%emt 0:00:02]} e5 {[%emt 0:00:01]} 2. Nf3 {[%emt 0:00:01]} Nc6 {[%emt 0:00:01]} 3. Bb5 {[%emt 0:00:01]} Nf6 {[%emt 0:00:01]} 4. O-O {[%emt 0:00:03][%cal Bh1f1,Bf1e1,Be1e5][%mdl 32]} Nxe4 {[%emt 0:00:01]} 5. Re1 {[%emt 0:00:01]} Nd6 {[%emt 0:00:01]} 6. Nxe5 {[%emt 0:00:02]} Be7 {[%emt 0:00:02]} 7. Bf1 {[%emt 0:00:02]} Nxe5 {[%emt 0:00:01]} 8. Rxe5 {[%emt 0:00:01]} O-O {[%emt 0:00:01]} 9. Nc3 {[%emt 0:00:03] C67: Ruy Lopez: Berlin Defence: 4 0-0 Nxe4.} Bf6 {[%emt 0:00:03]} 10. Re1 {[%emt 0:00:09]} Re8 {[%emt 0:00:02]} 11. Nd5 {[%emt 0:00:03]} Rxe1 {[%emt 0:00:11]} 12. Qxe1 {[%emt 0:00:02][%cal Od2d4]} b6 {[%emt 0:00:06]} 13. Nxf6+ {[%emt 0:00:05]} Qxf6 {[%emt 0:00:01]} 14. d3 {[%emt 0:00:24]} Bb7 {[%emt 0:00:01]} 15. Qc3 {[%emt 0:00:04]} Qxc3 {[%emt 0:00:02]} 16. bxc3 {[%emt 0:00:02] [#]} Ne8 $146 {[%emt 0:00:34]} ({Predecessor:} 16... Re8 17. c4 Bc6 18. Bf4 {½-½ (18) Shirov,A (2662)-Navara,D (2697) Tornelo INT 2020}) 17. c4 {[%emt 0:00:07]} c5 {[%emt 0:00:01]} 18. f3 {[%emt 0:00:35]} Nd6 {[%emt 0:00:10]} (18... d5 $11 {might be stronger.}) 19. Kf2 {[%emt 0:00:05]} Bc6 {[%emt 0:00:10]} 20. g3 {[%emt 0:00:10]} Ba4 {[%emt 0:00:08]} 21. c3 {[%emt 0:00:02]} Nb7 {[%emt 0:00:02]} 22. Bf4 {[%emt 0:00:07]} Re8 {[%emt 0:00:02]} 23. Bh3 {[%emt 0:00:25]} f6 {[%emt 0:00:08]} 24. Bf5 {[%emt 0:00:10]} g6 {[%emt 0:00:06]} 25. Be4 {[%emt 0:00:02]} Bc6 {[%emt 0:00:02]} 26. g4 {[%emt 0:00:07]} Kf7 {[%emt 0:00:09]} 27. h4 {[%emt 0:00:03][%cal Bh2h4,Bh4h5][%mdl 32]} Na5 {[%emt 0:00:05]} 28. Rh1 {[%emt 0:00:11]} Bxe4 {[%emt 0:00:14]} 29. fxe4 $11 {[%emt 0:00:01][%mdl 4096] Endgame KRB-KRN} Nc6 {[%emt 0:00:01]} 30. h5 {[%emt 0:00:15]} g5 {[%emt 0:00:01]} 31. Bg3 {[%emt 0:00:01]} Ne5 {[%emt 0:00:04]} 32. Bxe5 {[%emt 0:00:04]} fxe5 {[%emt 0:00:00] KR-KR} 33. Ke3 {[%emt 0:00:12]} h6 {[%emt 0:00:01]} 34. Rf1+ {[%emt 0:00:08]} Ke6 {[%emt 0:00:02]} 35. a4 {[%emt 0:00:02]} a5 {[%emt 0:00:05]} 36. Rb1 {[%emt 0:00:05]} Rb8 {[%emt 0:00:01]} 37. d4 {[%emt 0:00:07] [#] dxc5 is the strong threat.} d6 {[%emt 0:00:01] The position is equal.} 38. d5+ {[%emt 0:00:03]} Ke7 {[%emt 0:00:01]} 39. Rf1 {[%emt 0:00:01]} Rf8 {[%emt 0:00:02]} 40. Rxf8 {[%emt 0:00:03] Weighted Error Value: White=0.07 (flawless) /Black=0.07 (flawless)} 1/2-1/2

[Event "10th Norway Chess Blitz 2022"]
[Site "Stavanger"]
[Date "2022.05.30"]
[Round "7.1"]
[White "Anand, Viswanathan"]
[Black "Carlsen, Magnus"]
[Result "1-0"]
[ECO "B07"]
[WhiteElo "2751"]
[BlackElo "2864"]
[Annotator "TA"]
[PlyCount "86"]
[EventDate "2022.05.30"]
[EventType "tourn"]
[EventCountry "NOR"]
[SourceTitle "playchess.com"]
[Source "ChessBase"]
[SourceQuality "1"]
[TimeControl "180+2"]

{[%evp 10,86,29,22,22,17,14,18,30,18,21,22,25,16,30,30,36,0,-6,-8,116,0,0,0,0,0,0,0,0,0,0,0,0,10,0,-47,-59,-56,-66,-90,-64,-45,-80,-71,0,0,0,0,0,0,0,0,0,0,0,0,0,0,0,-382,0,-60,233,89,88,91,80,47,81,24,140,22,22,21,143,118,407,418,510]} 1. e4 {[%emt 0:00:01]} g6 {[%emt 0:00:01]} 2. d4 {[%emt 0:00:01]} d6 {[%emt 0:00:04]} 3. Nc3 {[%emt 0:00:02]} Bg7 {[%emt 0:00:01]} 4. Be3 {[%emt 0:00:01]} a6 {[%emt 0:00:02]} 5. h4 {[%emt 0:00:02]} Nf6 {[%emt 0:00:03]} 6. f3 {[%emt 0:00:04]} b5 {[%emt 0:00:07] B07: Pirc Defence: Miscellaneous Systems.} 7. Qd2 {[%emt 0:00:04]} h5 {[%emt 0:00:05]} 8. Nh3 {[%emt 0:00:02]} Bxh3 {[%emt 0:00:22] The position is equal.} 9. Rxh3 {[%emt 0:00:01]} Nbd7 {[%emt 0:00:06] Against e5} 10. O-O-O {[%emt 0:00:03]} Qc8 {[%emt 0:00:27]} 11. Kb1 {[%emt 0:00:11] [#]} c5 $146 {[%emt 0:00:10]} ({Predecessor:} 11... Nb6 12. Bd3 b4 13. Ne2 c5 14. dxc5 dxc5 15. e5 Nfd5 16. Be4 e6 17. Qd3 O-O 18. Bc1 Rd8 19. Ka1 Qc7 20. Rhh1 Nc3 {0-1 (20) Sekar,B (2247)-Neelotpal,D (2438) Mumbai 2017}) 12. dxc5 {[%emt 0:00:02]} Nxc5 {[%emt 0:00:01]} 13. Ne2 {[%emt 0:00:05]} O-O {[%emt 0:00:10]} 14. Bh6 {[%emt 0:00:06]} a5 {[%emt 0:00:24]} (14... Rd8 $11 {remains equal.}) 15. Bxg7 {[%emt 0:00:07]} (15. Nd4 $16) 15... Kxg7 $11 {[%emt 0:00:01]} 16. Rg3 {[%emt 0:00:06]} b4 {[%emt 0:00:07]} 17. Nd4 {[%emt 0:00:11] Hoping for Nf5+.} Ncxe4 {[%emt 0:00:12]} 18. fxe4 {[%emt 0:00:04]} Nxe4 {[%emt 0:00:02]} 19. Qe3 {[%emt 0:00:04]} Nxg3 {[%emt 0:00:01]} 20. Qxg3 {[%emt 0:00:02]} Qg4 {[%emt 0:00:03][%cal Rg4d1]} 21. Qe1 {[%emt 0:00:11]} Rac8 {[%emt 0:00:09]} 22. g3 {[%emt 0:00:23]} (22. Nf3 $11) 22... Rc5 $1 $15 {[%emt 0:00:04]} ({Don't play} 22... e5 23. Nb5 $14) 23. Be2 {[%emt 0:00:02]} Qe4 {[%emt 0:00:02] White must now prevent ...e5.} 24. Qd2 {[%emt 0:00:04]} Re5 {[%emt 0:00:19]} 25. Bf3 {[%emt 0:00:08]} Qe3 {[%emt 0:00:01]} 26. Qg2 {[%emt 0:00:02]} a4 {[%emt 0:00:14]} ({Black should play} 26... Rc8 $1 $17) 27. Nc6 {[%emt 0:00:11]} Rf5 {[%emt 0:00:05]} 28. Rd3 $1 $36 {[%emt 0:00:07][%mdl 2048] White fights for an advantage.} Qe1+ {[%emt 0:00:05]} 29. Rd1 {[%emt 0:00:01] The board is on fire.} Qe3 {[%emt 0:00:01]} 30. Rd3 $1 {[%emt 0:00:01]} Qc5 {[%emt 0:00:01] Threatens to win with ...e5.} 31. Nxe7 {[%emt 0:00:05]} Re5 {[%emt 0:00:03]} 32. Nd5 {[%emt 0:00:02]} Re1+ {[%emt 0:00:04]} 33. Bd1 {[%emt 0:00:05]} Rfe8 {[%emt 0:00:06]} 34. Qd2 $2 {[%emt 0:00:06][%mdl 8192] [#]} (34. Qf3 $11 {and White stays safe.}) 34... a3 $2 {[%emt 0:00:08]} (34... Qg1 $1 $19 {[%cal Oe1d1] And now ...Rxd1+! would win.} 35. a3 {[#]} (35. Nxb4 $2 Rxd1+ 36. Qxd1 Re1 $19) 35... Rxd1+ $1 {[%mdl 512]} 36. Qxd1 Re1 37. Qxe1 Qxe1+ 38. Ka2 bxa3 39. Rxa3 Qe2) 35. Qxb4 {[%emt 0:00:09]} (35. bxa3 $11 bxa3 36. Kc1) 35... R8e4 $2 {[%emt 0:00:13][%mdl 8192]} (35... Qxb4 $15 {keeps the upper hand.} 36. Nxb4 R8e3 37. Rxd6 Rxg3 38. bxa3 Rgg1) 36. Qxc5 {[%emt 0:00:07]} ({Don't take} 36. Qxa3 $6 Rxd1+ 37. Rxd1 Qxd5) (36. Qc3+ $18 Qxc3 37. Nxc3) 36... dxc5 $16 {[%emt 0:00:01]} 37. bxa3 {[%emt 0:00:04] Strongly threatening Nc3.} c4 {[%emt 0:00:02]} 38. Rd2 {[%emt 0:00:02]} Rg1 {[%emt 0:00:01]} 39. Nc3 {[%emt 0:00:05]} (39. Kb2 $16) 39... Re6 {[%emt 0:00:03]} (39... Re3 $11 {keeps the balance.} 40. Ne2 Rxd1+ 41. Rxd1 Rxe2) 40. a4 {[%emt 0:00:10]} ({Better is} 40. Rd4 $16) 40... Rxg3 $11 {[%emt 0:00:01]} 41. Nb5 {[%emt 0:00:02]} Re4 {[%emt 0:00:07]} (41... c3 $11 42. Rd3 Rxd3 43. cxd3 Ra6) 42. c3 {[%emt 0:00:03]} Rxh4 $2 {[%emt 0:00:02][%mdl 8192]} (42... Rd3 $16 {was called for.} 43. Rxd3 cxd3) 43. a5 $18 {[%emt 0:00:00]} Rh1 {[%emt 0:00:06] Quite a comeback for White.  Weighted Error Value: White=0.39/Black=0.62} 1-0

[Event "10th Norway Chess Blitz 2022"]
[Site "Stavanger"]
[Date "2022.05.30"]
[Round "7.2"]
[White "Mamedyarov, Shakhriyar"]
[Black "Wang, Hao"]
[Result "1/2-1/2"]
[ECO "D37"]
[WhiteElo "2770"]
[BlackElo "2744"]
[Annotator "TA"]
[PlyCount "74"]
[EventDate "2022.05.30"]
[EventType "tourn"]
[EventCountry "NOR"]
[SourceTitle "playchess.com"]
[Source "ChessBase"]
[SourceQuality "1"]
[TimeControl "180+2"]

{[%evp 9,74,16,18,0,17,16,20,19,17,8,0,17,20,28,46,33,35,12,23,14,29,31,28,5,5,0,0,0,4,0,0,-2,0,-15,0,-12,-12,-16,-13,-18,0,0,0,0,0,0,0,-24,-20,-23,0,0,0,0,0,0,0,0,0,0,0,0,0,0,0,0,0]} 1. d4 {[%emt 0:00:01]} Nf6 {[%emt 0:00:02]} 2. c4 {[%emt 0:00:01]} e6 {[%emt 0:00:01]} 3. Nf3 {[%emt 0:00:03]} d5 {[%emt 0:00:01]} 4. Nc3 {[%emt 0:00:01]} Be7 {[%emt 0:00:01]} 5. Bf4 {[%emt 0:00:09]} O-O {[%emt 0:00:03]} 6. a3 {[%emt 0:00:01] D37: Queen's Gambit Declined: 5 Bf4.} Nbd7 {[%emt 0:00:06]} 7. Nb5 {[%emt 0:00:02]} Ne8 {[%emt 0:00:02]} 8. e3 {[%emt 0:00:03]} a6 {[%emt 0:00:06] seems to push 8...c6 aside.} 9. Nc3 {[%emt 0:00:02]} dxc4 {[%emt 0:00:01]} 10. Bxc4 {[%emt 0:00:01]} c5 {[%emt 0:00:06] [#]} 11. dxc5 $146 {[%emt 0:00:11]} ({Predecessor:} 11. O-O cxd4 12. exd4 Nb6 13. Ba2 Nf6 14. Re1 Bd7 15. Qd3 Bc6 16. Rad1 Nbd5 17. Bc1 Nxc3 18. bxc3 {½-½ (43) Batsiashvili,N (2425)-Maisuradze,N (2315) Benidorm 2012}) 11... Nxc5 {[%emt 0:00:08]} 12. Qxd8 {[%emt 0:00:03]} Bxd8 {[%emt 0:00:02]} 13. b4 {[%emt 0:00:33]} Nd7 {[%emt 0:00:18]} 14. O-O {[%emt 0:00:06]} Be7 {[%emt 0:00:18]} 15. Rfd1 {[%emt 0:00:09]} Nef6 {[%emt 0:00:06]} 16. Bd3 {[%emt 0:00:20]} b5 {[%emt 0:00:10]} 17. Ne5 {[%emt 0:00:16]} Nxe5 {[%emt 0:00:03]} 18. Bxe5 {[%emt 0:00:01]} Bb7 {[%emt 0:00:02]} 19. Rac1 {[%emt 0:00:04][%cal Oc3b5]} Rac8 {[%emt 0:00:15]} 20. Ne2 {[%emt 0:00:19]} Rfd8 {[%emt 0:00:30]} 21. Nd4 {[%emt 0:00:14]} Kf8 {[%emt 0:00:42]} 22. Rxc8 {[%emt 0:00:03]} Rxc8 {[%emt 0:00:01]} 23. Nb3 {[%emt 0:00:04][%cal Ob3c5]} Nd7 {[%emt 0:00:13] Inhibits Nc5.} 24. Bd4 {[%emt 0:00:14]} g6 {[%emt 0:00:02]} 25. e4 {[%emt 0:00:04]} e5 {[%emt 0:00:07]} 26. Ba1 {[%emt 0:00:14][%cal Od3b5]} f6 {[%emt 0:00:04]} 27. f3 {[%emt 0:00:11][%cal Od3b5]} Nb6 {[%emt 0:00:03]} 28. Kf1 {[%emt 0:00:05]} Bc6 {[%emt 0:00:14]} 29. Rc1 {[%emt 0:00:06]} Bd7 {[%emt 0:00:01]} 30. Rxc8+ {[%emt 0:00:02] The position is equal.} Bxc8 {[%emt 0:00:01]} 31. Bb2 {[%emt 0:00:04]} Be6 {[%emt 0:00:01]} 32. Na5 {[%emt 0:00:03]} Ke8 {[%emt 0:00:03]} 33. Bc1 {[%emt 0:00:02]} Kd7 {[%emt 0:00:02]} 34. Ke2 {[%emt 0:00:00]} Na4 {[%emt 0:00:03]} 35. Bc2 {[%emt 0:00:05]} Nb6 {[%emt 0:00:02]} 36. Bd3 {[%emt 0:00:05]} Na4 {[%emt 0:00:02]} 37. Bc2 {[%emt 0:00:00]} Nb6 {[%emt 0:00:02] Weighted Error Value: White=0.04 (flawless) /Black=0.03 (flawless)} 1/2-1/2

[Event "10th Norway Chess Blitz 2022"]
[Site "Stavanger"]
[Date "2022.05.30"]
[Round "7.3"]
[White "Vachier-Lagrave, Maxime"]
[Black "Giri, Anish"]
[Result "1-0"]
[ECO "A01"]
[WhiteElo "2750"]
[BlackElo "2761"]
[Annotator "TA"]
[PlyCount "83"]
[EventDate "2022.05.30"]
[EventType "tourn"]
[EventCountry "NOR"]
[SourceTitle "playchess.com"]
[Source "ChessBase"]
[SourceQuality "1"]
[TimeControl "180+2"]

{[%evp 9,83,1,0,0,9,-2,8,-27,-33,-27,-25,-73,-29,-21,-22,-14,-18,-20,-5,-8,20,8,33,44,74,74,74,83,74,82,82,77,88,82,75,82,82,79,81,49,54,62,78,80,197,197,197,197,184,156,170,170,163,167,200,100,276,35,35,35,35,35,35,35,35,35,156,156,156,49,49,49,12795,11281,29991,29992]} 1. b3 {[%emt 0:00:01]} d5 {[%emt 0:00:03]} 2. Bb2 {[%emt 0:00:01]} Bf5 {[%emt 0:00:02]} 3. g3 {[%emt 0:00:06]} c5 {[%emt 0:00:08]} 4. Bg2 {[%emt 0:00:02]} Nc6 {[%emt 0:00:01]} 5. Nf3 {[%emt 0:00:01]} Nf6 {[%emt 0:00:11]} 6. O-O {[%emt 0:00:03] A01: Nimzowitsch-Larsen Opening.} e6 {[%emt 0:00:03]} 7. d3 {[%emt 0:00:18]} Be7 {[%emt 0:00:15]} 8. Nh4 $5 {[%emt 0:00:09][%mdl 4] [#] The position is equal. A promising side line.} Bg4 $146 {[%emt 0:00:01]} ({Predecessor:} 8... Bg6 9. Nxg6 hxg6 10. Nd2 Qc7 11. h3 O-O-O 12. Qe1 g5 13. e4 d4 14. a3 g4 15. hxg4 Nxg4 {0-1 (43) Antonova,N (1842)-Toncheva,N (2207) Chess.com INT 2022}) 9. h3 {[%emt 0:00:01]} Bh5 {[%emt 0:00:01]} 10. g4 {[%emt 0:00:03] [#]} (10. c4 $11 {is superior.}) 10... Nd7 $1 {[%emt 0:00:27]} 11. Nf5 {[%emt 0:00:10]} ({Don't go for} 11. Bxg7 $2 Rg8 12. gxh5 Rxg7 $17) 11... exf5 {[%emt 0:00:01]} 12. gxh5 {[%emt 0:00:01]} Bf6 {[%emt 0:00:04]} 13. Nc3 {[%emt 0:00:20]} Nb6 {[%emt 0:00:16]} 14. e4 $36 {[%emt 0:00:04][%cal Re4d5][%mdl 2048] White is pushing.} dxe4 {[%emt 0:00:10]} 15. dxe4 {[%emt 0:00:01]} Qxd1 {[%emt 0:00:23]} 16. Raxd1 {[%emt 0:00:02]} f4 {[%emt 0:00:04]} 17. e5 $1 {[%emt 0:00:07]} Bxe5 {[%emt 0:00:13]} 18. Bxc6+ {[%emt 0:00:58]} bxc6 {[%emt 0:00:01]} 19. Rfe1 {[%emt 0:00:01][%cal Bf1e1,Be1e5,Be5c5,Bc5c6,Bc6a6,Ba6a7][%mdl 32]} f6 {[%emt 0:00:01]} 20. Na4 $1 {[%emt 0:00:01]} Nxa4 {[%emt 0:00:36]} 21. Bxe5 {[%emt 0:00:02]} fxe5 {[%emt 0:00:01]} 22. Rxe5+ {[%emt 0:00:01]} Kf7 {[%emt 0:00:01] Strongly threatening ...Nb6.} 23. bxa4 {[%emt 0:00:01] Threatens to win with Rd7+.} Rhd8 {[%emt 0:00:04] Prevents Rd7+.} 24. Rxd8 {[%emt 0:00:08] White is more active.} Rxd8 {[%emt 0:00:01]} 25. Rxc5 $16 {[%emt 0:00:01][%mdl 4096] Endgame KR-KR} Rd4 {[%emt 0:00:04]} 26. c4 {[%emt 0:00:03]} Rd2 {[%emt 0:00:02]} (26... Rd3 $16) 27. Rxc6 $18 {[%emt 0:00:02]} Rxa2 {[%emt 0:00:01]} 28. Ra6 {[%emt 0:00:02]} ({Much less strong is} 28. Rc7+ Kf6) 28... Rc2 {[%emt 0:00:01]} 29. Kg2 {[%emt 0:00:09]} Rxc4 {[%emt 0:00:03]} 30. Rxa7+ {[%emt 0:00:01]} Kf6 {[%emt 0:00:01]} 31. Kf3 {[%emt 0:00:01]} h6 {[%emt 0:00:34]} 32. a5 {[%emt 0:00:01]} (32. h4 $18) 32... Ra4 $2 {[%emt 0:00:06] [#]} (32... Kg5 $16 {was necessary.}) 33. a6 $2 {[%emt 0:00:03]} (33. Kg4 $1 $18) 33... Kf5 {[%emt 0:00:04]} 34. Rf7+ {[%emt 0:00:04]} Kg5 $1 {[%emt 0:00:01]} 35. Rxg7+ {[%emt 0:00:02]} Kxh5 {[%emt 0:00:01]} 36. a7 {[%emt 0:00:02]} Kh4 {[%emt 0:00:01]} 37. Kg2 {[%emt 0:00:20]} h5 {[%emt 0:00:03]} (37... Ra3 $14) 38. Rf7 $16 {[%emt 0:00:08][%cal Of7f4] White threatens Rxf4+! and mate.} Kg5 {[%emt 0:00:02] [#]} 39. Kf3 {[%emt 0:00:02]} ({White must play} 39. h4+ $1 $16 Kg6 40. Re7) 39... Ra3+ $14 {[%emt 0:00:03]} 40. Ke4 {[%emt 0:00:01] Kd4 is the strong threat.} Kh4 $2 {[%emt 0:00:01][%mdl 8192]} (40... Ra2 $14 41. f3 Kg6) 41. Rxf4+ $18 {[%emt 0:00:01]} Kxh3 {[%emt 0:00:02]} 42. Rf3+ {Weighted Error Value: White=0.24 (precise) /Black=0.41} 1-0

[Event "10th Norway Chess Blitz 2022"]
[Site "Stavanger"]
[Date "2022.05.30"]
[Round "7.4"]
[White "Tari, Aryan"]
[Black "Radjabov, Teimour"]
[Result "1-0"]
[ECO "C10"]
[WhiteElo "2654"]
[BlackElo "2753"]
[Annotator "TA"]
[PlyCount "65"]
[EventDate "2022.05.30"]
[EventType "tourn"]
[EventCountry "NOR"]
[SourceTitle "playchess.com"]
[Source "ChessBase"]
[SourceQuality "1"]
[TimeControl "180+2"]

{[%evp 9,65,22,43,31,22,0,6,0,1,9,0,0,0,0,18,19,21,0,0,0,0,-53,-52,-47,-53,-52,-53,-51,-50,-107,-75,-116,-77,-58,-58,-57,-6,-22,-19,-41,0,0,0,0,0,0,77,78,84,0,278,278,501,39,6304,6154,29990,29991]} 1. e4 {[%emt 0:00:01]} e6 {[%emt 0:00:03]} 2. d4 {[%emt 0:00:01]} d5 {[%emt 0:00:01]} 3. Nc3 {[%emt 0:00:01]} a6 {[%emt 0:00:00]} 4. Nf3 {[%emt 0:00:03]} Nf6 {[%emt 0:00:02]} 5. Bd3 {[%emt 0:00:11]} c5 {[%emt 0:00:09]} 6. exd5 {[%emt 0:00:25] C10: French with 3 Nc3: Unusual Black 3rd moves and 3...dxe4.} exd5 {[%emt 0:00:02]} 7. dxc5 {[%emt 0:00:09]} Bxc5 {[%emt 0:00:01]} 8. O-O {[%emt 0:00:03] The position is equal.} O-O {[%emt 0:00:01]} 9. Bg5 {[%emt 0:00:02]} Be6 {[%emt 0:00:01]} 10. a3 {[%emt 0:00:09]} Nbd7 {[%emt 0:00:02]} 11. h3 {[%emt 0:00:05] [#]} Qc7 $146 {[%emt 0:00:09]} ({Predecessor:} 11... h6 12. Bh4 Qc7 13. Bxf6 Nxf6 14. b4 Ba7 15. Re1 Qxc3 16. Nd2 Qc7 17. Rc1 Bxh3 {0-1 (25) Hipp,F-Wuelfling,O Duesseldorf 1862}) 12. Qd2 {[%emt 0:00:08]} Rfe8 {[%emt 0:00:07][%cal Oe6h3]} 13. Rae1 {[%emt 0:00:03]} Rac8 {[%emt 0:00:03]} 14. Bf4 {[%emt 0:00:04]} Qc6 {[%emt 0:00:16]} 15. Ne5 {[%emt 0:00:05]} (15. Re2 $11) 15... Nxe5 $15 {[%emt 0:00:15]} 16. Bxe5 {[%emt 0:00:02]} Nd7 {[%emt 0:00:05]} 17. Bg3 {[%emt 0:00:12] [#]} Bxa3 $1 {[%emt 0:00:32]} 18. bxa3 {[%emt 0:00:42] Ne2 is the strong threat.} Qxc3 {[%emt 0:00:01]} 19. Qg5 {[%emt 0:00:08]} ({Better is} 19. Qxc3 $15 Rxc3 20. f4) 19... h6 {[%emt 0:00:14]} 20. Qh4 {[%emt 0:00:03]} Qf6 {[%emt 0:00:21]} 21. Qb4 {[%emt 0:00:04]} Nc5 {[%emt 0:00:10]} 22. Re3 {[%emt 0:00:08]} Ne4 {[%emt 0:00:29]} ({Black should try} 22... Bd7 $15 23. Rxe8+ Bxe8) 23. Bxe4 {[%emt 0:00:14]} dxe4 {[%emt 0:00:01]} 24. Qxb7 {[%emt 0:00:04]} Rxc2 {[%emt 0:00:13]} 25. Qxe4 {[%emt 0:00:03]} Rec8 {[%emt 0:00:08]} 26. Rfe1 {[%emt 0:00:04]} R2c4 {[%emt 0:00:09]} 27. Qb7 {[%emt 0:00:05]} a5 {[%emt 0:00:06]} (27... Bf5 $11) 28. Be5 $1 $16 {[%emt 0:00:01]} Qf5 {[%emt 0:00:06] [#]} 29. Rg3 {[%emt 0:00:06] White is more active.} (29. Bxg7 $1 $16 Kxg7 30. Rxe6) 29... g5 $2 {[%emt 0:00:01][%mdl 8192]} (29... Rc1 $1 $11 {and Black has nothing to worry.} 30. Rge3 (30. Rxg7+ $2 Kf8 $19) 30... R8c2) 30. Rf3 $18 {[%emt 0:00:04]} Qc2 {[%emt 0:00:05] [#]} (30... Rc1 {was worth a try.} 31. Rxf5 (31. Qxc8+ Rxc8 32. Rxf5 Bxf5 $11) 31... Rxe1+ 32. Kh2 Bxf5) 31. Bg3 $2 {[%emt 0:00:02]} (31. Rf6 $1 $18 {[%cal Rf6h6]} Qh7 32. Qe7) 31... Qd2 $2 {[%emt 0:00:03][%mdl 8192] [#]} (31... Qg6 $14) 32. Rxe6 $1 {[%emt 0:00:11][%mdl 512]} Rc1+ {[%emt 0:00:05]} (32... R4c7 33. Bxc7) 33. Kh2 {[%emt 0:00:01] Weighted Error Value: White=0.34/Black=0.58} 1-0

[Event "10th Norway Chess Blitz 2022"]
[Site "Stavanger"]
[Date "2022.05.30"]
[Round "7.5"]
[White "So, Wesley"]
[Black "Topalov, Veselin"]
[Result "1-0"]
[ECO "B52"]
[WhiteElo "2766"]
[BlackElo "2730"]
[Annotator "TA"]
[PlyCount "54"]
[EventDate "2022.05.30"]
[EventType "tourn"]
[EventCountry "NOR"]
[SourceTitle "playchess.com"]
[Source "ChessBase"]
[SourceQuality "1"]
[TimeControl "180+2"]

{[%evp 15,54,24,37,33,68,33,37,9,14,0,0,8,33,0,0,-37,88,81,109,118,101,98,101,102,113,110,116,117,118,109,135,91,790,766,788,776,1027,1027,970,932,1243]} 1. e4 {[%emt 0:00:03]} c5 {[%emt 0:00:01]} 2. Nf3 {[%emt 0:00:01]} d6 {[%emt 0:00:02]} 3. Bb5+ {[%emt 0:00:01]} Bd7 {[%emt 0:00:02]} 4. Bxd7+ {[%emt 0:00:02]} Qxd7 {[%emt 0:00:01]} 5. c4 {[%emt 0:00:01]} Nc6 {[%emt 0:00:05]} 6. d4 {[%emt 0:00:02]} cxd4 {[%emt 0:00:01]} 7. Nxd4 {[%emt 0:00:02]} g6 {[%emt 0:00:02]} 8. Nc3 {[%emt 0:00:03]} Bg7 {[%emt 0:00:02]} 9. Be3 {[%emt 0:00:02] B52: Sicilian: Moscow Variation with 3...Bd7.} Nh6 {[%emt 0:00:06]} 10. h3 {[%emt 0:00:10] Against Ng4. White is more active.} f5 {[%emt 0:00:01]} 11. Bxh6 {[%emt 0:00:27] White is slightly better.} Bxd4 {[%emt 0:00:17]} 12. O-O {[%emt 0:00:01] [#]} Bxc3 $146 {[%emt 0:00:02]} ({Predecessor:} 12... O-O-O 13. Nb5 e5 14. Bg5 Rdf8 15. Be3 f4 16. Bxd4 exd4 17. Nxd4 Ne5 18. Nf3 Nxf3+ 19. Qxf3 {1-0 (28) Cisler,P (2208)-Galicek,S (2164) Czech Republic 2001}) 13. bxc3 {[%emt 0:00:01]} fxe4 {[%emt 0:00:01]} 14. Qe2 {[%emt 0:00:03]} O-O-O {[%emt 0:00:04][%cal Og6g5]} 15. Rab1 {[%emt 0:00:03]} Ne5 {[%emt 0:00:14]} (15... Qe6 $15 {stays ahead.}) 16. Bg7 $16 {[%emt 0:00:15]} ({Much worse is} 16. Qxe4 Rhe8 $11) 16... Qc6 {[%emt 0:00:25]} 17. Bxh8 {[%emt 0:00:13]} Rxh8 {[%emt 0:00:01]} 18. Rfd1 {[%emt 0:00:14][%cal Bf1d1,Bd1d4,Bd4e4][%mdl 32]} Nxc4 {[%emt 0:00:19]} 19. Qg4+ {[%emt 0:00:11]} Kb8 {[%emt 0:00:00]} 20. Qe6 {[%emt 0:00:01][%mdl 1024] White has strong compensation.} Re8 {[%emt 0:00:06]} 21. Rd4 {[%emt 0:00:11][%csl LRc4,LRe4]} Ne5 {[%emt 0:00:11]} 22. a4 {[%emt 0:00:01] aiming for Rdb4.} e3 {[%emt 0:00:38]} 23. f4 {[%emt 0:00:09][%cal Bf2f4,Bf4e5][%mdl 32]} e2 $2 {[%emt 0:00:31][%mdl 8192] A mistake that costs the game.} 24. fxe5 $18 {[%emt 0:00:30] White is clearly winning.} Qxc3 {[%emt 0:00:02]} 25. Re4 {[%emt 0:00:02]} Qd3 {[%emt 0:00:27] [#]} 26. Rxb7+ $3 {[%emt 0:00:29][%mdl 512]} Kxb7 {[%emt 0:00:02]} 27. exd6 {[%emt 0:00:00] And now Qd7+ would win.} Qxd6 {[%emt 0:00:02] Weighted Error Value: White=0.12 (very precise) /Black=0.30} 1-0